[Event "*** Titled Tuesday Blitz"]
[Site "Chess.com"]
[Date "2020.11.10"]
[Round "5"]
[White "swimmerchess"]
[Black "Neftegor"]
[Result "1-0"]
[WhiteElo "2830"]
[BlackElo "2460"]
[TimeControl "180+1"]
[EndTime "10:58:36 PST"]
[Termination "swimmerchess won by checkmate"]

1. e4 {[%clk 0:03:00.5]} 1... e5 {[%clk 0:02:59.2]} 2. Nf3 {[%clk 0:02:59.8]}
2... Nc6 {[%clk 0:02:59.4]} 3. Bb5 {[%clk 0:02:57.7]} 3... a6 {[%clk 0:02:58.8]}
4. Ba4 {[%clk 0:02:57.9]} 4... Nf6 {[%clk 0:02:57.7]} 5. O-O {[%clk 0:02:57.7]}
5... Be7 {[%clk 0:02:57.9]} 6. Re1 {[%clk 0:02:57.5]} 6... b5 {[%clk 0:02:57.2]}
7. Bb3 {[%clk 0:02:57.5]} 7... d6 {[%clk 0:02:57.6]} 8. c3 {[%clk 0:02:54.4]}
8... O-O {[%clk 0:02:56.7]} 9. h3 {[%clk 0:02:53.8]} 9... Nb8 {[%clk 0:02:56.3]}
10. d4 {[%clk 0:02:53.2]} 10... Nbd7 {[%clk 0:02:55.9]} 11. Nbd2 {[%clk
0:02:52.9]} 11... Bb7 {[%clk 0:02:56]} 12. Bc2 {[%clk 0:02:48.8]} 12... Re8
{[%clk 0:02:53]} 13. Nf1 {[%clk 0:02:40.8]} 13... Bf8 {[%clk 0:02:53]} 14. Ng3
{[%clk 0:02:40.3]} 14... g6 {[%clk 0:02:53.2]} 15. Bg5 {[%clk 0:02:37.2]} 15...
h6 {[%clk 0:02:52.5]} 16. Bd2 {[%clk 0:02:35.2]} 16... c5 {[%clk 0:02:50]} 17.
d5 {[%clk 0:02:26.6]} 17... c4 {[%clk 0:02:49.1]} 18. b3 {[%clk 0:02:13.9]}
18... cxb3 {[%clk 0:02:44.4]} 19. axb3 {[%clk 0:02:13.8]} 19... Rc8 {[%clk
0:02:44.5]} 20. Bd3 {[%clk 0:02:09.4]} 20... Nc5 {[%clk 0:02:42.5]} 21. Bf1
{[%clk 0:02:04.9]} 21... h5 {[%clk 0:02:42.4]} 22. b4 {[%clk 0:02:02]} 22... Na4
{[%clk 0:02:40.6]} 23. Qb3 {[%clk 0:01:53]} 23... Nb6 {[%clk 0:02:39.3]} 24. Bg5
{[%clk 0:01:50.9]} 24... Be7 {[%clk 0:02:38.6]} 25. Be3 {[%clk 0:01:41.9]} 25...
Nfd7 {[%clk 0:02:33.6]} 26. Nd2 {[%clk 0:01:40]} 26... Bg5 {[%clk 0:02:28.2]}
27. c4 {[%clk 0:01:29.5]} 27... h4 {[%clk 0:02:22.1]} 28. Nh1 {[%clk 0:01:00.8]}
28... bxc4 {[%clk 0:02:07.6]} 29. Nxc4 {[%clk 0:01:00]} 29... Nxc4 {[%clk
0:02:06.3]} 30. Bxc4 {[%clk 0:01:00.9]} 30... Ra8 {[%clk 0:02:04.5]} 31. f3
{[%clk 0:00:48.9]} 31... Bxe3+ {[%clk 0:02:01.1]} 32. Rxe3 {[%clk 0:00:49.8]}
32... Qb6 {[%clk 0:01:59.4]} 33. Nf2 {[%clk 0:00:45.8]} 33... Rec8 {[%clk
0:01:52.6]} 34. Rc3 {[%clk 0:00:43.8]} 34... Nf6 {[%clk 0:01:44.1]} 35. Rac1
{[%clk 0:00:40]} 35... Nh5 {[%clk 0:01:40.7]} 36. Qb2 {[%clk 0:00:33.6]} 36...
Nf4 {[%clk 0:01:38.4]} 37. Kh2 {[%clk 0:00:31.2]} 37... a5 {[%clk 0:01:33.2]}
38. b5 {[%clk 0:00:26.7]} 38... a4 {[%clk 0:01:33.3]} 39. Ng4 {[%clk 0:00:26.4]}
39... Kg7 {[%clk 0:01:31.1]} 40. Ra3 {[%clk 0:00:24.2]} 40... Qd4 {[%clk
0:01:20.5]} 41. Qb4 {[%clk 0:00:15.7]} 41... Qc5 {[%clk 0:01:12.3]} 42. Qc3
{[%clk 0:00:13.2]} 42... f6 {[%clk 0:01:06.9]} 43. Ra2 {[%clk 0:00:11.8]} 43...
Bxd5 {[%clk 0:01:04.8]} 44. exd5 {[%clk 0:00:11.5]} 44... Nxd5 {[%clk
0:00:57.4]} 45. Qd2 {[%clk 0:00:10.8]} 45... Nb4 {[%clk 0:00:56]} 46. Qh6#
{[%clk 0:00:10.6]} 1-0

[Event "*** Titled Tuesday Blitz"]
[Site "Chess.com"]
[Date "2020.11.10"]
[Round "5"]
[White "Fortitudine"]
[Black "Mr_Heisenberg13"]
[Result "1-0"]
[WhiteElo "2297"]
[BlackElo "2479"]
[TimeControl "180+1"]
[EndTime "10:58:36 PST"]
[Termination "Fortitudine won by resignation"]

1. c4 {[%clk 0:03:00.9]} 1... Nf6 {[%clk 0:02:58.2]} 2. g3 {[%clk 0:03:00.7]}
2... e6 {[%clk 0:02:58]} 3. Bg2 {[%clk 0:03:00.9]} 3... d5 {[%clk 0:02:58.4]} 4.
Nf3 {[%clk 0:03:01.3]} 4... Be7 {[%clk 0:02:59]} 5. O-O {[%clk 0:03:00.2]} 5...
O-O {[%clk 0:02:58.1]} 6. b3 {[%clk 0:03:00.5]} 6... b6 {[%clk 0:02:58.1]} 7.
cxd5 {[%clk 0:03:00.3]} 7... exd5 {[%clk 0:02:57.6]} 8. d4 {[%clk 0:03:00.2]}
8... Bb7 {[%clk 0:02:57.6]} 9. Bb2 {[%clk 0:02:59.6]} 9... Ne4 {[%clk
0:02:56.2]} 10. Nc3 {[%clk 0:02:53.6]} 10... Nd7 {[%clk 0:02:56]} 11. Rc1 {[%clk
0:02:49.5]} 11... a6 {[%clk 0:02:54.3]} 12. Ne5 {[%clk 0:02:34.3]} 12... Nxc3
{[%clk 0:02:42.3]} 13. Rxc3 {[%clk 0:02:17.1]} 13... Nxe5 {[%clk 0:02:41.4]} 14.
dxe5 {[%clk 0:02:18]} 14... Qd7 {[%clk 0:02:38.9]} 15. f4 {[%clk 0:02:06.2]}
15... c5 {[%clk 0:02:31]} 16. Rd3 {[%clk 0:02:02.9]} 16... d4 {[%clk 0:02:26.6]}
17. Bxb7 {[%clk 0:01:56.1]} 17... Qxb7 {[%clk 0:02:27.1]} 18. e3 {[%clk
0:01:52.9]} 18... Rfd8 {[%clk 0:02:18.7]} 19. exd4 {[%clk 0:01:50.2]} 19... cxd4
{[%clk 0:02:19.6]} 20. Qf3 {[%clk 0:01:41.8]} 20... Qc7 {[%clk 0:01:36.1]} 21.
Rfd1 {[%clk 0:01:35]} 21... Qc2 {[%clk 0:01:33.8]} 22. Qg2 {[%clk 0:01:25.2]}
22... Qc7 {[%clk 0:01:24]} 23. Bxd4 {[%clk 0:01:09.7]} 23... Rac8 {[%clk
0:01:17.6]} 24. Bf2 {[%clk 0:01:05.3]} 24... Rxd3 {[%clk 0:01:12]} 25. Rxd3
{[%clk 0:01:06.2]} 25... Qc2 {[%clk 0:01:11.9]} 26. Qd5 {[%clk 0:00:54.8]} 26...
Qxa2 {[%clk 0:01:05.1]} 27. e6 {[%clk 0:00:38.4]} 27... Rf8 {[%clk 0:00:55.6]}
28. exf7+ {[%clk 0:00:35.9]} 28... Rxf7 {[%clk 0:00:56.1]} 29. Re3 {[%clk
0:00:35.2]} 29... Bf8 {[%clk 0:00:54.4]} 30. Re8 {[%clk 0:00:23.8]} 30... Qa3
{[%clk 0:00:45.7]} 31. Bxb6 {[%clk 0:00:20.6]} 31... h6 {[%clk 0:00:44.6]} 32.
Bc5 {[%clk 0:00:17.5]} 32... Qc1+ {[%clk 0:00:42.8]} 33. Kg2 {[%clk 0:00:17]}
33... Qd2+ {[%clk 0:00:19.2]} 34. Qxd2 {[%clk 0:00:16.1]} 1-0

[Event "*** Titled Tuesday Blitz"]
[Site "Chess.com"]
[Date "2020.11.10"]
[Round "5"]
[White "1977Ivan"]
[Black "Mr_Sinigami"]
[Result "1-0"]
[WhiteElo "2707"]
[BlackElo "2529"]
[TimeControl "180+1"]
[EndTime "10:58:39 PST"]
[Termination "1977Ivan won on time"]

1. e4 {[%clk 0:03:00.9]} 1... c5 {[%clk 0:02:59.2]} 2. Nf3 {[%clk 0:03:00.1]}
2... e6 {[%clk 0:02:59.2]} 3. d3 {[%clk 0:02:57.3]} 3... Nc6 {[%clk 0:02:57.1]}
4. g3 {[%clk 0:02:56.7]} 4... d5 {[%clk 0:02:55.8]} 5. Qe2 {[%clk 0:02:55.7]}
5... Nf6 {[%clk 0:02:50.6]} 6. Bg2 {[%clk 0:02:54.8]} 6... Be7 {[%clk
0:02:49.9]} 7. O-O {[%clk 0:02:53.8]} 7... b5 {[%clk 0:02:43.6]} 8. exd5 {[%clk
0:02:26.8]} 8... exd5 {[%clk 0:02:40.6]} 9. c4 {[%clk 0:02:26.2]} 9... bxc4
{[%clk 0:02:27.1]} 10. dxc4 {[%clk 0:02:25.8]} 10... Ba6 {[%clk 0:02:26.6]} 11.
b3 {[%clk 0:02:22.9]} 11... O-O {[%clk 0:02:25.9]} 12. Rd1 {[%clk 0:02:12]}
12... Qb6 {[%clk 0:02:12.7]} 13. Nc3 {[%clk 0:02:03.6]} 13... Rfe8 {[%clk
0:02:04.5]} 14. Nb5 {[%clk 0:01:22.4]} 14... Ne4 {[%clk 0:01:21.5]} 15. Bb2
{[%clk 0:01:16.6]} 15... Bf6 {[%clk 0:01:21.1]} 16. Bxf6 {[%clk 0:01:10.9]}
16... Nxf6 {[%clk 0:01:20.4]} 17. Qf1 {[%clk 0:01:09.5]} 17... Rad8 {[%clk
0:01:14.5]} 18. Rac1 {[%clk 0:01:04.7]} 18... dxc4 {[%clk 0:01:04.9]} 19. bxc4
{[%clk 0:01:03.7]} 19... Bxb5 {[%clk 0:01:04.7]} 20. cxb5 {[%clk 0:01:02.8]}
20... Nd4 {[%clk 0:01:04.8]} 21. Nxd4 {[%clk 0:00:59.5]} 21... cxd4 {[%clk
0:01:04.8]} 22. Bc6 {[%clk 0:00:53]} 22... Re6 {[%clk 0:01:04.1]} 23. Qc4 {[%clk
0:00:51.6]} 23... Ng4 {[%clk 0:00:44]} 24. Qc5 {[%clk 0:00:51.2]} 24... Ne5
{[%clk 0:00:41]} 25. Bg2 {[%clk 0:00:30.8]} 25... h5 {[%clk 0:00:31.1]} 26. h3
{[%clk 0:00:29.8]} 26... h4 {[%clk 0:00:20.3]} 27. f4 {[%clk 0:00:23.2]} 27...
Nd7 {[%clk 0:00:06.8]} 28. Qxd4 {[%clk 0:00:21.5]} 28... hxg3 {[%clk 0:00:05.9]}
29. Qxb6 {[%clk 0:00:20.6]} 29... axb6 {[%clk 0:00:04.2]} 30. Bc6 {[%clk
0:00:20]} 30... Re7 {[%clk 0:00:04.1]} 31. Rd3 {[%clk 0:00:20]} 1-0

[Event "*** Titled Tuesday Blitz"]
[Site "Chess.com"]
[Date "2020.11.10"]
[Round "5"]
[White "26andrej26"]
[Black "lucachess49"]
[Result "1-0"]
[WhiteElo "2539"]
[BlackElo "2360"]
[TimeControl "180+1"]
[EndTime "10:58:39 PST"]
[Termination "26andrej26 won on time"]

1. e4 {[%clk 0:02:50.8]} 1... e5 {[%clk 0:02:58.2]} 2. Nf3 {[%clk 0:02:48.9]}
2... Nc6 {[%clk 0:02:56.7]} 3. Bb5 {[%clk 0:02:49.1]} 3... a6 {[%clk 0:02:56]}
4. Ba4 {[%clk 0:02:49.2]} 4... Nf6 {[%clk 0:02:51.2]} 5. O-O {[%clk 0:02:49.3]}
5... Be7 {[%clk 0:02:45.9]} 6. Re1 {[%clk 0:02:49.5]} 6... b5 {[%clk 0:02:44.4]}
7. Bb3 {[%clk 0:02:50]} 7... d6 {[%clk 0:02:45.2]} 8. c3 {[%clk 0:02:50.7]} 8...
O-O {[%clk 0:02:40.6]} 9. h3 {[%clk 0:02:51.3]} 9... Na5 {[%clk 0:02:32.1]} 10.
Bc2 {[%clk 0:02:50.7]} 10... c5 {[%clk 0:02:33]} 11. d4 {[%clk 0:02:51.2]} 11...
Qc7 {[%clk 0:02:30]} 12. Nbd2 {[%clk 0:02:49.7]} 12... Nc6 {[%clk 0:02:26.7]}
13. a3 {[%clk 0:02:48.3]} 13... c4 {[%clk 0:01:43]} 14. Nf1 {[%clk 0:02:44.5]}
14... h6 {[%clk 0:01:29.5]} 15. a4 {[%clk 0:02:32.1]} 15... Bd7 {[%clk
0:01:24.1]} 16. Ng3 {[%clk 0:02:24.4]} 16... Rfd8 {[%clk 0:01:06.3]} 17. d5
{[%clk 0:02:13.5]} 17... Na5 {[%clk 0:01:02.4]} 18. Nh4 {[%clk 0:02:13.4]} 18...
Nxd5 {[%clk 0:00:50.2]} 19. Nhf5 {[%clk 0:02:01.2]} 19... Bxf5 {[%clk
0:00:50.1]} 20. Nxf5 {[%clk 0:02:02.1]} 20... Nf6 {[%clk 0:00:09.1]} 21. Qf3
{[%clk 0:02:01.7]} 21... Nc6 {[%clk 0:00:07.4]} 22. Qg3 {[%clk 0:01:58.7]} 22...
g6 {[%clk 0:00:04.6]} 23. Nxh6+ {[%clk 0:01:58]} 23... Kf8 {[%clk 0:00:04.8]}
24. Be3 {[%clk 0:01:45.7]} 24... d5 {[%clk 0:00:04.3]} 25. exd5 {[%clk
0:01:42.7]} 25... Nxd5 {[%clk 0:00:04.5]} 26. Qf3 {[%clk 0:01:38.4]} 26... Bf6
{[%clk 0:00:03.8]} 27. Ng4 {[%clk 0:01:31.5]} 27... Bg7 {[%clk 0:00:02.4]} 28.
Bxg6 {[%clk 0:01:31.5]} 28... Nxe3 {[%clk 0:00:02]} 29. Rxe3 {[%clk 0:01:29.2]}
29... e4 {[%clk 0:00:02.2]} 30. Rxe4 {[%clk 0:01:27.7]} 30... Rd3 {[%clk
0:00:02.1]} 31. Ne3 {[%clk 0:01:13.9]} 31... Rad8 {[%clk 0:00:01.4]} 32. Bh5
{[%clk 0:01:06.1]} 32... Ne5 {[%clk 0:00:01.6]} 33. Qf5 {[%clk 0:01:04.2]} 33...
f6 {[%clk 0:00:01.8]} 34. axb5 {[%clk 0:01:03]} 34... Qd7 {[%clk 0:00:02]} 35.
Qxd7 {[%clk 0:01:01.7]} 35... R8xd7 {[%clk 0:00:02.7]} 36. bxa6 {[%clk
0:01:01.8]} 36... Ra7 {[%clk 0:00:03.3]} 37. Nxc4 {[%clk 0:00:59.5]} 37... Nxc4
{[%clk 0:00:02.9]} 38. Rxc4 {[%clk 0:01:00.4]} 38... Rd6 {[%clk 0:00:02.8]} 39.
Rca4 {[%clk 0:00:58.7]} 39... Rb6 {[%clk 0:00:02.3]} 40. Re1 {[%clk 0:00:51.1]}
40... Bh6 {[%clk 0:00:01.4]} 41. b4 {[%clk 0:00:45.7]} 1-0

[Event "*** Titled Tuesday Blitz"]
[Site "Chess.com"]
[Date "2020.11.10"]
[Round "5"]
[White "Zhuu96"]
[Black "maciek_92"]
[Result "1-0"]
[WhiteElo "2901"]
[BlackElo "2765"]
[TimeControl "180+1"]
[EndTime "10:58:41 PST"]
[Termination "Zhuu96 won on time"]

1. d4 {[%clk 0:02:59.7]} 1... f5 {[%clk 0:02:58.1]} 2. Bg5 {[%clk 0:02:57.7]}
2... g6 {[%clk 0:02:56]} 3. h4 {[%clk 0:02:56.2]} 3... Bg7 {[%clk 0:02:54.9]} 4.
h5 {[%clk 0:02:56.1]} 4... h6 {[%clk 0:02:54.8]} 5. Bc1 {[%clk 0:02:52.2]} 5...
g5 {[%clk 0:02:53.1]} 6. Nc3 {[%clk 0:02:49.2]} 6... d5 {[%clk 0:02:51.9]} 7. e3
{[%clk 0:02:45.9]} 7... c6 {[%clk 0:02:41.5]} 8. Bd3 {[%clk 0:02:44.8]} 8... Nf6
{[%clk 0:02:40.3]} 9. Nf3 {[%clk 0:02:42.8]} 9... Ne4 {[%clk 0:02:34.3]} 10. Ne5
{[%clk 0:02:39.8]} 10... Bxe5 {[%clk 0:02:08.6]} 11. dxe5 {[%clk 0:02:38.5]}
11... Nxc3 {[%clk 0:02:06.5]} 12. bxc3 {[%clk 0:02:37.8]} 12... Qc7 {[%clk
0:02:04.5]} 13. f4 {[%clk 0:02:36]} 13... g4 {[%clk 0:02:04]} 14. a4 {[%clk
0:02:24]} 14... Be6 {[%clk 0:01:56.6]} 15. Ba3 {[%clk 0:02:16.4]} 15... c5
{[%clk 0:01:54.6]} 16. Qb1 {[%clk 0:02:06.5]} 16... Kf7 {[%clk 0:01:38.4]} 17.
O-O {[%clk 0:02:01]} 17... Nd7 {[%clk 0:01:16.1]} 18. c4 {[%clk 0:02:00.2]}
18... dxc4 {[%clk 0:01:14.9]} 19. Be2 {[%clk 0:02:00.5]} 19... Qc6 {[%clk
0:00:56.4]} 20. c3 {[%clk 0:01:59]} 20... Rhg8 {[%clk 0:00:45.4]} 21. e4 {[%clk
0:01:57.7]} 21... fxe4 {[%clk 0:00:24]} 22. f5 {[%clk 0:01:57.4]} 22... Nxe5
{[%clk 0:00:24.5]} 23. fxe6+ {[%clk 0:01:57.4]} 23... Kxe6 {[%clk 0:00:25.4]}
24. Qc1 {[%clk 0:01:46.1]} 24... Nf3+ {[%clk 0:00:17.9]} 25. Kf2 {[%clk
0:01:40.9]} 25... Raf8 {[%clk 0:00:15.3]} 26. Bxc4+ {[%clk 0:01:37.5]} 26... Ke5
{[%clk 0:00:12.9]} 27. Ke2 {[%clk 0:01:36.5]} 27... Rg5 {[%clk 0:00:08.8]} 28.
Qe3 {[%clk 0:01:34]} 28... b6 {[%clk 0:00:08.7]} 29. gxf3 {[%clk 0:01:26.5]}
29... gxf3+ {[%clk 0:00:09.6]} 30. Ke1 {[%clk 0:01:26.5]} 30... Qxa4 {[%clk
0:00:08]} 31. Bd3 {[%clk 0:01:17]} 31... Rg2 {[%clk 0:00:06.4]} 32. c4 {[%clk
0:01:07.6]} 32... Qc6 {[%clk 0:00:03.2]} 33. Rf2 {[%clk 0:00:46]} 33... Rg1+
{[%clk 0:00:02.6]} 34. Bf1 {[%clk 0:00:45.4]} 34... Rd8 {[%clk 0:00:02.3]} 35.
Rxf3 {[%clk 0:00:40]} 35... Rd4 {[%clk 0:00:01.6]} 36. Qf4+ {[%clk 0:00:38.3]}
36... Ke6 {[%clk 0:00:02.1]} 37. Qe3 {[%clk 0:00:34.6]} 1-0

[Event "*** Titled Tuesday Blitz"]
[Site "Chess.com"]
[Date "2020.11.10"]
[Round "5"]
[White "Pertinhez76"]
[Black "Luklei18"]
[Result "1-0"]
[WhiteElo "2115"]
[BlackElo "2280"]
[TimeControl "180+1"]
[EndTime "10:58:41 PST"]
[Termination "Pertinhez76 won by resignation"]

1. d4 {[%clk 0:03:00.9]} 1... Nf6 {[%clk 0:02:59.8]} 2. Nf3 {[%clk 0:02:59.7]}
2... g6 {[%clk 0:03:00.2]} 3. Bf4 {[%clk 0:02:59.4]} 3... Bg7 {[%clk 0:03:00.1]}
4. Nc3 {[%clk 0:02:59.3]} 4... O-O {[%clk 0:03:00.6]} 5. Qd2 {[%clk 0:02:59.6]}
5... d6 {[%clk 0:02:59.8]} 6. e4 {[%clk 0:02:58.4]} 6... c6 {[%clk 0:02:57.9]}
7. Bh6 {[%clk 0:02:58]} 7... Nbd7 {[%clk 0:02:52.1]} 8. h4 {[%clk 0:02:57.8]}
8... e5 {[%clk 0:02:44.9]} 9. h5 {[%clk 0:02:54.3]} 9... exd4 {[%clk 0:02:17.5]}
10. Nxd4 {[%clk 0:02:54]} 10... Nc5 {[%clk 0:02:06.2]} 11. Bxg7 {[%clk
0:02:52.2]} 11... Kxg7 {[%clk 0:02:05.1]} 12. hxg6 {[%clk 0:02:51.8]} 12... fxg6
{[%clk 0:02:05.8]} 13. Qh6+ {[%clk 0:02:43.8]} 13... Kg8 {[%clk 0:02:05.7]} 14.
f3 {[%clk 0:02:38.4]} 14... Qc7 {[%clk 0:01:50.3]} 15. O-O-O {[%clk 0:02:35.6]}
15... b5 {[%clk 0:01:49.4]} 16. Kb1 {[%clk 0:01:48.2]} 16... Ne6 {[%clk
0:01:47.6]} 17. Qh2 {[%clk 0:01:27.9]} 17... Nxd4 {[%clk 0:01:18.8]} 18. Rxd4
{[%clk 0:01:26.8]} 18... Rd8 {[%clk 0:01:19.3]} 19. e5 {[%clk 0:00:58.5]} 19...
dxe5 {[%clk 0:01:05]} 20. Rxd8+ {[%clk 0:00:58.1]} 20... Qxd8 {[%clk 0:01:05.9]}
21. Qxe5 {[%clk 0:00:57.7]} 21... Bf5 {[%clk 0:00:39.7]} 22. g4 {[%clk
0:00:48.9]} 22... Qe8 {[%clk 0:00:40]} 23. Bc4+ {[%clk 0:00:37.5]} 23... bxc4
{[%clk 0:00:39.5]} 24. Qxf6 {[%clk 0:00:37.5]} 24... Bc8 {[%clk 0:00:13.6]} 25.
Rd1 {[%clk 0:00:29.5]} 25... Rb8 {[%clk 0:00:13.9]} 26. Rd8 {[%clk 0:00:27.8]}
26... Bxg4 {[%clk 0:00:12.2]} 27. Rxe8+ {[%clk 0:00:26.5]} 27... Rxe8 {[%clk
0:00:13.1]} 28. a4 {[%clk 0:00:19.4]} 28... Be6 {[%clk 0:00:12.4]} 29. Ne4
{[%clk 0:00:18.1]} 29... Bd5 {[%clk 0:00:12.8]} 30. Qd4 {[%clk 0:00:17.5]} 30...
Re7 {[%clk 0:00:07.7]} 31. Nf6+ {[%clk 0:00:16.7]} 31... Kf8 {[%clk 0:00:07.5]}
32. Nxd5 {[%clk 0:00:17.6]} 32... cxd5 {[%clk 0:00:07.6]} 33. Qxd5 {[%clk
0:00:17.9]} 1-0

[Event "*** Titled Tuesday Blitz"]
[Site "Chess.com"]
[Date "2020.11.10"]
[Round "5"]
[White "VladimirPotkin"]
[Black "wonderfultime"]
[Result "1-0"]
[WhiteElo "2696"]
[BlackElo "2930"]
[TimeControl "180+1"]
[EndTime "10:58:47 PST"]
[Termination "VladimirPotkin won on time"]

1. Nf3 {[%clk 0:03:00.9]} 1... Nf6 {[%clk 0:02:59.9]} 2. c4 {[%clk 0:03:00.8]}
2... c6 {[%clk 0:02:58.8]} 3. Nc3 {[%clk 0:03:00.8]} 3... d5 {[%clk 0:02:58.2]}
4. e3 {[%clk 0:03:01.5]} 4... a6 {[%clk 0:02:57.8]} 5. d4 {[%clk 0:03:00.2]}
5... Bf5 {[%clk 0:02:57.3]} 6. Ne5 {[%clk 0:02:54.9]} 6... Nbd7 {[%clk
0:02:17.6]} 7. Qb3 {[%clk 0:02:47.8]} 7... Rb8 {[%clk 0:02:10]} 8. cxd5 {[%clk
0:02:45.2]} 8... Nxe5 {[%clk 0:02:09.6]} 9. dxe5 {[%clk 0:02:44.8]} 9... Nxd5
{[%clk 0:02:10.1]} 10. e4 {[%clk 0:02:03.5]} 10... Nxc3 {[%clk 0:02:10.4]} 11.
exf5 {[%clk 0:02:03.8]} 11... Nd5 {[%clk 0:02:10.9]} 12. Bc4 {[%clk 0:01:58.3]}
12... g6 {[%clk 0:02:00.9]} 13. fxg6 {[%clk 0:01:40.8]} 13... hxg6 {[%clk
0:01:58.7]} 14. e6 {[%clk 0:01:38.5]} 14... Qd6 {[%clk 0:01:05.6]} 15. exf7+
{[%clk 0:01:31.8]} 15... Kxf7 {[%clk 0:01:06.5]} 16. g3 {[%clk 0:01:27.2]} 16...
b5 {[%clk 0:00:58.1]} 17. Be2 {[%clk 0:01:12.6]} 17... Bg7 {[%clk 0:00:43.4]}
18. O-O {[%clk 0:01:11.5]} 18... Rbd8 {[%clk 0:00:37.2]} 19. Bf3 {[%clk
0:01:10.1]} 19... Qe6 {[%clk 0:00:35.4]} 20. Bg2 {[%clk 0:01:08]} 20... Bf6
{[%clk 0:00:33.6]} 21. Bd2 {[%clk 0:01:05.7]} 21... Nb6 {[%clk 0:00:33.5]} 22.
Qxe6+ {[%clk 0:01:03.9]} 22... Kxe6 {[%clk 0:00:34.4]} 23. Ba5 {[%clk
0:01:04.4]} 23... Rb8 {[%clk 0:00:35]} 24. Rae1+ {[%clk 0:00:53.8]} 24... Kf7
{[%clk 0:00:34.1]} 25. b3 {[%clk 0:00:53.1]} 25... Nd5 {[%clk 0:00:33.3]} 26.
Rc1 {[%clk 0:00:53.1]} 26... b4 {[%clk 0:00:06.2]} 27. Rxc6 {[%clk 0:00:52.6]}
27... Nc3 {[%clk 0:00:06.6]} 28. Re1 {[%clk 0:00:36.9]} 28... Rb5 {[%clk
0:00:05.6]} 29. Rxa6 {[%clk 0:00:35]} 29... Nxa2 {[%clk 0:00:03.8]} 30. Bf1
{[%clk 0:00:31.2]} 30... Rbh5 {[%clk 0:00:02.9]} 31. Bc4+ {[%clk 0:00:30.9]}
31... Kg7 {[%clk 0:00:03.4]} 32. h4 {[%clk 0:00:23.3]} 32... g5 {[%clk
0:00:03.9]} 33. Be2 {[%clk 0:00:19.7]} 33... R5h6 {[%clk 0:00:01.9]} 34. h5
{[%clk 0:00:20]} 34... Nc3 {[%clk 0:00:01.2]} 35. Bg4 {[%clk 0:00:20.1]} 1-0

[Event "*** Titled Tuesday Blitz"]
[Site "Chess.com"]
[Date "2020.11.10"]
[Round "5"]
[White "monalize"]
[Black "MPGM"]
[Result "0-1"]
[WhiteElo "2300"]
[BlackElo "2466"]
[TimeControl "180+1"]
[EndTime "10:58:48 PST"]
[Termination "MPGM won by resignation"]

1. e4 {[%clk 0:02:59.4]} 1... c6 {[%clk 0:02:58.4]} 2. Nc3 {[%clk 0:02:57.6]}
2... d5 {[%clk 0:02:59.3]} 3. d4 {[%clk 0:02:57.4]} 3... dxe4 {[%clk 0:02:59.5]}
4. Nxe4 {[%clk 0:02:57.5]} 4... Nf6 {[%clk 0:03:00.4]} 5. Nxf6+ {[%clk
0:02:56.3]} 5... exf6 {[%clk 0:03:01.3]} 6. c3 {[%clk 0:02:52.5]} 6... Bd6
{[%clk 0:03:01.7]} 7. Bc4 {[%clk 0:02:52.1]} 7... O-O {[%clk 0:03:01.2]} 8. Ne2
{[%clk 0:02:51.4]} 8... Na6 {[%clk 0:02:52.3]} 9. Be3 {[%clk 0:02:50.4]} 9...
Nc7 {[%clk 0:02:52.4]} 10. Qb3 {[%clk 0:02:46.7]} 10... b5 {[%clk 0:02:50.8]}
11. Bd3 {[%clk 0:02:46.8]} 11... Nd5 {[%clk 0:02:47.8]} 12. Bd2 {[%clk
0:02:39.4]} 12... Re8 {[%clk 0:02:45.4]} 13. O-O {[%clk 0:02:37.5]} 13... h5
{[%clk 0:02:30.9]} 14. Rfe1 {[%clk 0:02:36]} 14... h4 {[%clk 0:02:30.1]} 15. h3
{[%clk 0:02:10]} 15... Be6 {[%clk 0:02:23.6]} 16. Qc2 {[%clk 0:02:09]} 16... Bc7
{[%clk 0:02:21.3]} 17. Be4 {[%clk 0:01:48.6]} 17... Qd6 {[%clk 0:02:20.8]} 18.
f4 {[%clk 0:01:48.3]} 18... Re7 {[%clk 0:02:04.3]} 19. Qd3 {[%clk 0:01:31.4]}
19... Rae8 {[%clk 0:02:03.6]} 20. Bf3 {[%clk 0:01:31]} 20... g6 {[%clk
0:01:57.2]} 21. Bg4 {[%clk 0:01:10]} 21... Bxg4 {[%clk 0:01:56.4]} 22. hxg4
{[%clk 0:01:09.6]} 22... Re4 {[%clk 0:01:29.7]} 23. Qf3 {[%clk 0:01:06.1]} 23...
Qe6 {[%clk 0:01:05]} 24. Kf2 {[%clk 0:01:05.2]} 24... f5 {[%clk 0:00:58.8]} 25.
g5 {[%clk 0:01:00.3]} 25... Qd6 {[%clk 0:00:49.6]} 26. b3 {[%clk 0:00:53.1]}
26... Bb6 {[%clk 0:00:27.4]} 27. b4 {[%clk 0:00:51.5]} 27... a5 {[%clk
0:00:25.8]} 28. a3 {[%clk 0:00:50.9]} 28... axb4 {[%clk 0:00:24.5]} 29. axb4
{[%clk 0:00:50.1]} 29... Nxb4 {[%clk 0:00:18.2]} 30. cxb4 {[%clk 0:00:48.8]}
30... Bxd4+ {[%clk 0:00:18.7]} 31. Nxd4 {[%clk 0:00:47.4]} 31... Qxd4+ {[%clk
0:00:19.6]} 32. Be3 {[%clk 0:00:45]} 32... Rxe3 {[%clk 0:00:15.1]} 33. Rxe3
{[%clk 0:00:43.9]} 33... Rxe3 {[%clk 0:00:16]} 34. Qxe3 {[%clk 0:00:42.1]} 34...
Qxa1 {[%clk 0:00:16.2]} 35. Qe8+ {[%clk 0:00:41.5]} 35... Kg7 {[%clk 0:00:15.8]}
36. Qxc6 {[%clk 0:00:41.3]} 36... Qb2+ {[%clk 0:00:14.9]} 37. Kf3 {[%clk
0:00:35.7]} 37... Qxb4 {[%clk 0:00:14]} 38. Qd5 {[%clk 0:00:32.9]} 38... Qc3+
{[%clk 0:00:10.7]} 39. Kf2 {[%clk 0:00:31.9]} 39... b4 {[%clk 0:00:11.1]} 40.
Qb7 {[%clk 0:00:26.9]} 40... b3 {[%clk 0:00:11.2]} 41. Qb6 {[%clk 0:00:26.9]}
41... b2 {[%clk 0:00:11.4]} 0-1